bitfinex/quotes_SOLUSD_20260213
["timestamp","ask_amount","ask_price","bid_price","bid_amount"]
[1771005904068,0.81857251,84.749,84.72,10.35804518]
[1771005904371,0.81857251,84.749,84.682,47.23512858]
[1771005904372,0.81857251,84.729,84.684,12.556476]
[1771005904554,48.3,84.753,84.641,47.25807508]
[1771005904555,10.35804518,84.71,84.671,0.74794115]
[1771005904762,10.35804518,84.69,84.661,46.58]
[1771005905272,4.61729252,84.728,84.67,10.35804518]
[1771005905273,11.17661769,84.71,84.67,10.35804518]
[1771005905456,11.17661769,84.71,84.671,0.74794115]
[1771005905652,11.80372761,84.719,84.68,11.10598633]
[1771005905849,11.79996696,84.746,84.711,0.74794115]
[1771005906269,0.81857251,84.729,84.69,10.35804518]
[1771005907365,0.81857251,84.729,84.7,10.35804518]
[1771005907753,10.35804518,84.72,84.682,11.808885]
[1771005907955,11.80247379,84.728,84.655,0.74794115]
[1771005907956,0.81857251,84.709,84.655,0.74794115]
[1771005908157,0.81857251,84.699,84.66,10.35804518]
[1771005908764,10.35804518,84.75,84.691,0.74794115]
[1771005909065,0.81857251,84.749,84.71,10.35804518]
[1771005909660,12.61826099,84.748,84.72,10.35804518]
[1771005910069,10.35804518,84.76,84.721,0.74794115]
[1771005910272,22.15606311,84.76,84.73,10.35804518]
[1771005910458,22.97463562,84.76,84.73,10.35804518]
[1771005910790,12.61659044,84.76,84.73,10.35804518]
[1771005911090,0.81857251,84.769,84.73,10.35804518]
[1771005911263,0.81857251,84.759,84.714,0.74794115]
[1771005911461,0.81857251,84.759,84.73,10.35804518]
[1771005911656,0.81857251,84.759,84.73,22.16023631]
[1771005911863,39.84961059,84.77,84.73,22.16023631]
[1771005911864,12.61686883,84.758,84.73,10.35804518]
[1771005912067,0.81857251,84.757,84.72,10.35804518]
[1771005912478,4.61729252,84.779,84.704,11.8058179]
[1771005912479,12.61533783,84.769,84.74,10.35804518]
[1771005912854,0.81857251,84.768,84.712,0.74794115]
[1771005913197,0.81857251,84.768,84.667,47.24346507]
[1771005913198,0.81857251,84.739,84.71,10.35804518]
[1771005913478,0.81857251,84.739,84.7,10.35804518]
[1771005913786,11.80108097,84.738,84.7,10.35804518]
[1771005913971,11.80108097,84.738,84.701,11.80623605]
[1771005914188,0.81857251,84.737,84.7,10.35804518]
[1771005915193,0.81857251,84.737,84.699,0.74794115]
[1771005915476,0.81857251,84.737,84.682,46.58]
[1771005915477,0.81857251,84.729,84.69,10.35804518]
[1771005915685,0.81857251,84.729,84.7,10.35804518]
[1771005915897,11.80247379,84.728,84.7,10.35804518]
[1771005916193,41.30865828,84.728,84.692,11.80749067]
[1771005916371,11.80247379,84.728,84.7,10.35804518]
[1771005917878,0.81857251,84.709,84.67,10.35804518]
[1771005918180,0.81857251,84.709,84.631,47.26349086]
[1771005918181,0.81857251,84.709,84.68,10.35804518]
[1771005918584,0.81857251,84.709,84.674,0.74794115]
[1771005919781,41.30865828,84.728,84.658,12.56017389]
[1771005919782,10.35804518,84.69,84.658,12.56017389]
[1771005920076,11.80665423,84.698,84.66,11.10598633]
[1771005920454,11.80665423,84.698,84.661,0.74794115]
[1771005920659,10.35804518,84.69,84.661,0.74794115]
[1771005920876,11.80665423,84.698,84.661,0.74794115]
[1771005921374,10.35804518,84.69,84.661,0.74794115]
[1771005921779,10.35804518,84.69,84.656,46.52]
[1771005921780,0.81857251,84.689,84.656,46.52]
[1771005922075,11.80804836,84.688,84.657,11.81237227]
[1771005922379,11.80804836,84.688,84.657,0.74794115]
[1771005922582,11.80804836,84.688,84.657,12.56031342]
[1771005922761,30.33492703,84.699,84.66,10.35804518]
[1771005922968,11.80665423,84.698,84.661,0.74794115]
[1771005923263,11.80665423,84.698,84.657,11.81237227]
[1771005923264,0.81857251,84.71,84.68,10.35804518]
[1771005923461,165.0,84.751,84.69,10.35804518]
[1771005923462,11.80372761,84.719,84.69,10.35804518]
[1771005923663,11.80372761,84.719,84.681,0.74794115]
[1771005924074,11.80372761,84.719,84.682,12.55682615]
[1771005924380,11.80372761,84.719,84.683,0.74794115]
[1771005925572,47.1779596,84.786,84.701,0.74794115]
[1771005925573,11.80135951,84.736,84.701,0.74794115]
[1771005927065,0.81857251,84.719,84.683,11.80874555]
[1771005927467,0.81857251,84.709,84.67,10.35804518]
[1771005927682,10.35804518,84.69,84.659,11.812091]
[1771005928684,0.81857251,84.697,84.659,11.812091]
[1771005928887,10.35804518,84.78,84.651,0.74794115]
[1771005928888,0.81857251,84.716,84.651,0.74794115]
[1771005929229,12.62508734,84.699,84.663,0.74794115]
[1771005929366,11.80651483,84.699,84.671,0.74794115]
[1771005929796,11.80526042,84.708,84.671,0.74794115]
[1771005929982,48.24,84.707,84.671,0.74794115]
[1771005930170,11.80526042,84.708,84.68,10.35804518]
[1771005930367,11.80526042,84.708,84.68,11.10598633]
[1771005930569,11.80372761,84.719,84.681,0.74794115]
[1771005932078,0.84431555,84.709,84.668,0.84623851]
[1771005932704,0.84431555,84.709,84.668,12.65703736]
[1771005933294,10.35804518,84.71,84.66,10.35804518]
[1771005933295,0.84431555,84.699,84.661,11.81181417]
[1771005933505,0.84431555,84.699,84.662,0.84623851]
[1771005933813,0.84431555,84.699,84.661,11.81181417]
[1771005934107,0.84431555,84.699,84.67,10.35804518]
[1771005934478,11.80665423,84.698,84.662,0.84623851]
[1771005934677,11.80665423,84.698,84.67,10.35804518]
[1771005934884,11.80665423,84.698,84.662,0.84623851]
[1771005935218,11.80665423,84.698,84.634,61.9]
[1771005935219,0.84431555,84.679,84.641,0.84623851]
[1771005935395,0.84431555,84.669,84.631,12.66223973]
[1771005936196,10.35804518,84.66,84.631,0.84623851]
[1771005936380,0.84431555,84.669,84.631,0.84623851]
[1771005936799,10.35804518,84.66,84.631,0.84623851]
[1771005937199,0.84431555,84.667,84.631,0.84623851]
[1771005937701,0.7913324,84.666,84.631,0.84623851]
[1771005938200,41.33793168,84.668,84.6,12.0203183]
[1771005938201,0.7913324,84.639,84.6,12.0203183]
[1771005938395,0.7913324,84.629,84.6,22.37836348]
[1771005938699,10.35804518,84.66,84.621,0.79356522]
[1771005938700,0.7913324,84.659,84.621,0.79356522]
[1771005938897,0.7913324,84.659,84.6,29.75082742]
[1771005938898,0.7913324,84.639,84.601,11.82010771]
[1771005939300,0.7913324,84.639,84.61,10.35804518]
[1771005939603,0.7913324,84.639,84.602,0.79356522]
[1771005939994,41.34281461,84.658,84.601,11.82010771]
[1771005939995,0.7913324,84.649,84.61,11.1516104]
[1771005940189,0.7913324,84.647,84.611,0.79356522]
[1771005940385,0.7913324,84.647,84.601,11.82010771]
[1771005940386,0.7913324,84.664,84.621,0.79356522]
[1771005940603,0.7913324,84.685,84.65,10.35804518]
[1771005940898,11.80860611,84.684,84.651,12.60677475]
[1771005941088,0.7913324,84.683,84.651,12.60677475]
[1771005941287,0.7913324,84.659,84.618,11.81778005]
[1771005941494,0.7913324,84.659,84.62,10.34817962]
[1771005942494,0.7913324,84.659,84.62,11.14174484]
[1771005943003,0.7913324,84.657,84.62,22.95917981]
[1771005943188,11.13951202,84.65,84.62,12.61100019]
[1771005943388,11.81223274,84.658,84.606,0.79356522]
[1771005943389,10.34817962,84.64,84.606,0.79356522]
[1771005943591,10.34817962,84.64,84.61,10.34817962]
[1771005943901,10.34817962,84.64,84.601,103.27066937]
[1771005943902,0.7913324,84.657,84.621,0.79356522]
[1771005944091,0.7913324,84.657,84.62,10.34817962]
[1771005944092,0.7913324,84.649,84.62,10.34817962]
[1771005944298,0.7913324,84.649,84.611,0.79356522]
[1771005945795,11.8136282,84.648,84.613,0.79356522]
[1771005947513,0.7913324,84.659,84.621,0.79356522]
[1771005947699,0.7913324,84.668,84.64,22.16289148]
[1771005947904,0.7913324,84.667,84.632,11.81582499]
[1771005949611,11.81111662,84.666,84.633,0.79356522]
[1771005950321,22.15874907,84.67,84.633,0.79356522]
[1771005950491,0.7913324,84.686,84.651,0.79356522]
[1771005950692,0.7913324,84.719,84.671,0.79356522]
[1771005950893,48.24,84.738,84.69,10.34817962]
[1771005951194,47.19024924,84.764,84.66,10.34817962]
[1771005951195,0.7913324,84.749,84.72,10.34817962]
[1771005951386,0.7913324,84.759,84.693,0.79356522]
[1771005951585,0.7913324,84.757,84.72,10.34817962]
[1771005951806,10.34817962,84.75,84.72,10.34817962]
[1771005952203,10.34817962,84.75,84.718,11.80386406]
[1771005952609,48.28,84.758,84.74,10.34817962]
[1771005952798,0.7913324,84.778,84.74,11.14174484]
[1771005953114,0.7913324,84.759,84.719,0.79356522]
[1771005953312,0.7913324,84.759,84.721,0.79356522]
[1771005953703,11.79829632,84.758,84.723,0.79356522]
[1771005954613,48.3,84.768,84.731,0.79356522]
[1771005954794,60.09698443,84.768,84.741,0.79356522]
[1771005955201,48.3,84.768,84.741,0.79356522]
[1771005955397,11.79634231,84.773,84.741,0.79356522]
[1771005955610,11.79676532,84.769,84.741,0.79356522]
[1771005955919,11.79676532,84.769,84.741,12.59410124]
[1771005956113,11.79676532,84.769,84.741,30.79356522]
[1771005956422,11.7958893,84.776,84.742,11.80052394]
[1771005956593,10.34817962,84.78,84.743,0.79356522]
[1771005956798,0.7913324,84.779,84.743,0.79356522]
[1771005957312,0.7913324,84.779,84.721,5.36086188]
[1771005957313,0.7913324,84.759,84.72,11.14174484]
[1771005957519,10.34817962,84.75,84.721,0.79356522]
[1771005957717,0.7913324,84.759,84.721,0.79356522]
[1771005957901,0.7913324,84.759,84.721,12.59701418]
[1771005958098,11.79829632,84.758,84.722,0.79356522]
[1771005960020,10.34817962,84.75,84.722,0.79356522]
[1771005960322,11.79829632,84.758,84.724,0.79356522]
[1771005960625,10.34817962,84.76,84.724,0.79356522]
[1771005960823,0.80438453,84.789,84.751,0.81778191]
[1771005961014,10.34817962,84.78,84.751,0.81778191]
[1771005963932,11.79537385,84.779,84.751,0.81778191]
[1771005965025,0.80438453,84.789,84.751,0.81778191]
[1771005965026,11.7941218,84.788,84.751,0.81778191]
[1771005965404,0.80438453,84.807,84.78,10.34817962]
[1771005965622,0.88631708,84.799,84.761,46.08]
[1771005966034,0.88631708,84.789,84.761,46.08]
[1771005966211,0.88631708,84.789,84.752,11.79913158]
[1771005967423,0.88631708,84.789,84.76,10.34817962]
[1771005967731,12.68030825,84.789,84.76,10.34817962]
[1771005968226,11.79399117,84.789,84.752,11.79913158]
[1771005968532,0.88631708,84.788,84.752,11.79913158]
[1771005969031,0.88631708,84.788,84.76,10.34817962]
[1771005969211,10.34817962,84.79,84.76,10.34817962]
[1771005969212,0.88631708,84.79,84.76,10.34817962]
[1771005969526,0.88631708,84.789,84.76,10.34817962]
[1771005970405,0.88631708,84.789,84.746,46.08]
[1771005970406,0.88631708,84.779,84.746,46.08]
[1771005970605,0.88631708,84.779,84.711,102.6]
[1771005970606,10.34817962,84.76,84.734,11.80163806]
[1771005970807,11.79370452,84.791,84.75,10.34817962]
[1771005971028,11.79370452,84.791,84.76,10.34817962]
[1771005971207,0.88631708,84.789,84.75,10.34817962]
[1771005971410,11.7941218,84.788,84.751,11.7992708]
[1771005971626,0.88631708,84.789,84.76,10.34817962]
[1771005971827,0.88631708,84.801,84.77,10.34817962]
[1771005972007,0.88631708,84.801,84.751,46.65830969]
[1771005972008,10.44817962,84.82,84.79,10.34817962]
[1771005972213,0.1,84.82,84.8,10.34817962]
[1771005972408,10.44817962,84.82,84.79,10.34817962]
[1771005972631,0.88631708,84.809,84.784,46.08]
[1771005972808,0.1,84.82,84.79,10.34817962]
[1771005973326,0.1,84.82,84.791,11.79370452]
[1771005974519,0.1,84.82,84.8,10.34817962]
[1771005975012,0.1,84.82,84.791,41.27796582]
[1771005975616,0.1,84.82,84.8,10.34817962]
[1771005976024,11.78459323,84.857,84.81,10.34817962]
[1771005976229,0.89721363,84.848,84.83,10.34817962]
[1771005976432,0.89721363,84.848,84.81,10.34817962]
[1771005977037,0.89721363,84.848,84.806,46.1]
[1771005977038,0.89721363,84.848,84.82,10.34817962]
[1771005977336,0.89721363,84.885,84.841,41.25363915]
[1771005977637,0.89721363,84.885,84.86,10.34817962]
[1771005978011,0.1,84.89,84.86,10.34817962]
[1771005978215,10.44817962,84.89,84.86,10.34817962]
[1771005978429,11.78017891,84.889,84.86,10.34817962]
[1771005978841,0.1,84.89,84.86,10.34817962]
[1771005979220,0.1,84.89,84.87,10.34817962]
[1771005979427,0.89721363,84.905,84.88,10.34817962]
[1771005979727,0.89721363,84.905,84.87,46.18]
[1771005979728,10.34817962,84.9,84.86,10.34817962]
[1771005980033,10.34817962,84.89,84.86,10.34817962]
[1771005980342,10.34817962,84.87,84.84,10.34817962]
[1771005980533,10.34817962,84.9,84.824,46.18]
[1771005980840,10.34817962,84.9,84.757,47.19325779]
[1771005980841,10.34817962,84.85,84.81,10.34817962]
[1771005981221,10.34817962,84.85,84.82,10.34817962]
[1771005981532,12.59002726,84.849,84.82,10.34817962]
[1771005982031,0.80438453,84.869,84.83,0.51198605]
[1771005982225,0.80438453,84.899,84.861,0.51198605]
[1771005982426,0.80438453,84.899,84.87,10.34817962]
[1771005983521,0.80438453,84.879,84.852,46.18]
[1771005983921,11.78161596,84.878,84.852,46.18]
[1771005984441,11.78161596,84.878,84.81,10.34817962]
[1771005984442,0.80438453,84.859,84.81,10.34817962]
[1771005984743,0.80438453,84.849,84.82,10.34817962]
[1771005985427,0.80438453,84.849,84.804,46.18]
[1771005985428,0.80438453,84.87,84.84,10.34817962]
[1771005985731,11.78161596,84.878,84.85,10.34817962]
[1771005986138,12.58600049,84.878,84.85,10.34817962]
[1771005986340,0.80438453,84.878,84.85,10.34817962]
[1771005986647,47.08857353,84.947,84.841,41.77392601]
[1771005986648,0.80438453,84.913,84.87,10.86846648]
[1771005986955,11.77734361,84.909,84.88,10.34817962]
[1771005987443,0.80438453,84.913,84.87,0.52028686]
[1771005987444,0.80438453,84.913,84.89,10.34817962]
[1771005987622,0.80438453,84.926,84.9,10.34817962]
[1771005987818,0.80438453,84.926,84.891,11.77981175]
[1771005988147,0.80438453,84.919,84.89,10.34817962]
[1771005989328,0.80438453,84.919,84.9,10.34817962]
[1771005990151,0.80438453,84.919,84.891,11.7796758]
[1771005990844,11.77498222,84.926,84.891,12.30906618]
[1771005991036,11.77498222,84.926,84.9,10.34817962]
[1771005991441,11.77498222,84.926,84.891,12.30906618]
[1771005991752,12.64912337,84.926,84.9,10.34817962]
[1771005991941,0.87414115,84.925,84.9,10.34817962]
[1771005992746,0.87414115,84.925,84.9,22.1267005]
[1771005993151,0.87414115,84.925,84.882,108.04]
[1771005993331,0.87414115,84.925,84.9,10.34817962]
[1771005994167,0.87414115,84.925,84.9,22.12673555]
[1771005994539,0.2592664,84.934,84.91,10.34817962]
[1771005994737,0.2592664,84.934,84.905,0.53411275]
[1771005994954,12.6481277,84.933,84.901,46.14]
[1771005995142,0.87414115,84.929,84.901,46.14]
[1771005995938,0.87414115,84.909,84.87,10.34817962]
[1771005996138,0.87414115,84.899,84.868,11.78300419]
[1771005996345,0.87414115,84.899,84.863,46.16]
[1771005996346,0.87414115,84.899,84.863,57.94361074]
[1771005996551,0.87414115,84.899,84.863,46.16]
[1771005996852,0.87414115,84.889,84.85,10.34817962]
[1771005997153,0.85898754,84.859,84.82,10.34817962]
[1771005997355,0.85898754,84.849,84.82,10.34817962]
[1771005997655,10.34817962,84.85,84.816,46.16]
[1771005997833,10.34817962,84.9,84.831,11.78814348]
[1771005997834,0.85898754,84.863,84.831,11.78814348]
[1771005998043,0.85898754,84.874,84.85,10.34817962]
[1771005998242,0.85898754,84.884,84.85,10.34817962]
[1771005999263,0.85898754,84.879,84.843,46.16]
[1771005999443,0.85898754,84.879,84.85,10.34817962]
[1771005999762,0.85898754,84.879,84.841,46.16]
[1771006000055,0.85898754,84.849,84.81,10.34817962]
[1771006000259,11.78300419,84.868,84.8,30.02272688]
[1771006000260,11.78300419,84.868,84.83,10.34817962]
[1771006000443,10.34817962,84.88,84.84,10.34817962]
[1771006000646,0.85898754,84.881,84.85,10.34817962]
[1771006000859,47.76,84.904,84.84,46.18]
[1771006000860,10.30564704,84.86,84.84,46.18]
[1771006001165,10.30564704,84.85,84.815,0.54190668]
[1771006001463,0.85898754,84.859,84.815,0.54190668]
[1771006001464,0.85898754,84.859,84.82,10.30564704]
[1771006001662,88.99468426,84.88,84.8,39.78646724]
[1771006001663,0.85898754,84.839,84.8,39.78646724]
[1771006001869,0.85898754,84.839,84.801,46.18]
[1771006002052,22.95022388,84.85,84.81,10.30564704]
[1771006002251,22.95022388,84.85,84.803,0.54402724]
[1771006002252,10.30564704,84.84,84.803,0.54402724]
[1771006002454,10.30564704,84.84,84.802,11.79217471]
[1771006002455,0.85898754,84.829,84.802,11.79217471]
[1771006002876,0.85898754,84.839,84.802,11.79217471]
[1771006003455,0.85898754,84.839,84.801,46.18]
[1771006003456,0.85898754,84.829,84.801,46.18]
[1771006003664,0.85898754,84.829,84.798,11.7927146]
[1771006004173,0.85898754,84.829,84.791,41.27796582]
[1771006004469,10.30564704,84.83,84.791,41.27796582]
[1771006004470,0.85898754,84.827,84.791,41.27796582]
[1771006004970,10.30564704,84.82,84.791,11.79370452]
[1771006005466,0.85898754,84.827,84.791,11.79370452]
[1771006006265,0.85898754,84.827,84.792,0.54815861]
[1771006006462,0.85898754,84.827,84.793,46.2]
[1771006006950,12.64772109,84.827,84.793,46.2]
[1771006007158,0.85898754,84.826,84.793,46.2]
[1771006007356,0.85898754,84.819,84.793,46.2]
[1771006008056,5.36086188,84.897,84.793,46.2]
[1771006008057,0.85898754,84.885,84.812,5.36086188]
[1771006008372,0.85898754,84.879,84.85,10.30564704]
[1771006008572,12.6404647,84.879,84.845,46.24]
[1771006008869,0.85898754,84.879,84.845,46.24]
[1771006009084,0.85898754,84.879,84.85,10.30564704]
[1771006009250,0.85898754,84.879,84.845,46.24]
[1771006009763,0.85898754,84.879,84.846,46.26]
[1771006010453,0.85898754,84.879,84.847,11.78592053]
[1771006010654,0.85898754,84.869,84.83,10.30564704]
[1771006010872,0.85898754,84.869,84.831,46.26]
[1771006011276,0.85898754,84.869,84.83,10.30564704]
[1771006011277,0.85898754,84.869,84.832,46.24]
[1771006011793,11.16463458,84.86,84.832,46.24]
[1771006011972,0.85898754,84.859,84.832,46.24]
[1771006012281,0.85898754,84.869,84.832,46.24]
[1771006012479,0.85898754,84.869,84.833,11.78786557]
[1771006013057,0.85898754,84.859,84.832,46.24]
[1771006014179,0.85898754,84.849,84.832,46.24]
[1771006014383,0.85898754,84.849,84.823,11.78925142]
[1771006015782,0.85898754,84.839,84.817,46.22]
[1771006015988,0.85898754,84.85,84.82,10.30564704]
[1771006016162,0.85898754,84.85,84.821,46.24]
[1771006017185,0.85898754,84.849,84.821,46.24]
[1771006017385,0.85898754,84.849,84.811,30.033935]
[1771006017386,0.85898754,84.839,84.811,11.7908519]
[1771006018485,0.85898754,84.848,84.811,11.7908519]
[1771006019182,11.78592053,84.847,84.811,11.7908519]
[1771006019688,0.85898754,84.879,84.831,0.56017594]
[1771006019990,47.48,84.897,84.83,10.30564704]
[1771006019991,10.30564704,84.86,84.83,46.24]
[1771006020377,147.23377187,84.899,84.84,10.30564704]
[1771006020378,0.85898754,84.879,84.84,10.30564704]
[1771006020688,0.85898754,84.879,84.842,0.56102377]
[1771006020986,11.15113854,84.89,84.85,10.30564704]
[1771006021164,0.8454915,84.879,84.842,0.56102377]
[1771006021364,12.62709592,84.879,84.843,11.78647619]
[1771006021773,10.30564704,84.9,84.861,0.5626808]
[1771006022187,0.8454915,84.899,84.861,0.5626808]
[1771006023268,0.8454915,84.899,84.87,10.30564704]
[1771006023467,0.8454915,84.899,84.871,11.78258769]
[1771006023664,0.8454915,84.899,84.865,11.78341141]
[1771006023863,0.8454915,84.889,84.863,46.24]
[1771006024785,0.8454915,84.889,84.841,29.46660012]
[1771006024786,0.8454915,84.869,84.802,0.56509379]
[1771006024969,0.8454915,84.859,84.82,10.30564704]
[1771006025166,0.8454915,84.891,84.841,0.56588665]
[1771006025390,0.8454915,84.891,84.851,0.56588665]
[1771006025683,11.77875375,84.899,84.87,10.30564704]
[1771006025888,0.8454915,84.9,84.86,10.87153369]
[1771006026083,11.15113854,84.9,84.86,10.87153369]
[1771006026279,0.8454915,84.932,84.881,0.56666696]
[1771006026469,0.8454915,84.929,84.89,10.30564704]
[1771006026870,0.8454915,84.929,84.9,10.30564704]
[1771006027385,11.77467972,84.928,84.9,10.30564704]
[1771006027791,0.8454915,84.927,84.895,11.7792373]
[1771006028093,0.8454915,84.927,84.89,68.30553048]
[1771006028286,0.8454915,84.919,84.89,46.22]
[1771006028495,0.8454915,84.927,84.89,46.22]
[1771006028712,0.8454915,84.927,84.9,10.30564704]
[1771006028989,47.34,84.957,84.9,10.30564704]
[1771006028990,0.9313181,84.967,84.921,5.36086188]
[1771006029181,0.9313181,84.967,84.95,10.30564704]
[1771006029387,11.76814053,84.976,84.95,10.30564704]
[1771006029571,0.9313181,84.976,84.95,10.30564704]
[1771006029767,0.9313181,84.989,84.96,10.30564704]
[1771006029992,0.9313181,84.989,84.937,46.26]
[1771006030193,0.9313181,84.989,84.886,47.12178559]
[1771006030194,0.9313181,84.949,84.868,11.78300419]
[1771006030372,229.43877369,84.99,84.868,11.78300419]
[1771006030373,10.30564704,84.92,84.89,10.30564704]
[1771006030574,10.30564704,84.92,84.868,11.78300419]
[1771006030575,0.9313181,84.909,84.87,10.30564704]
[1771006030779,16.48,84.95,84.862,46.28]
[1771006030780,10.30564704,84.9,84.862,46.28]
[1771006031098,10.30564704,84.91,84.87,10.30564704]
[1771006031481,11.77731453,84.909,84.871,11.78258769]
[1771006031678,11.77731453,84.909,84.88,10.30564704]
[1771006031993,11.77664702,84.914,84.88,10.30564704]
[1771006032889,0.86613774,84.913,84.88,10.30564704]
[1771006033091,0.86613774,84.913,84.873,46.28]
[1771006033092,10.30564704,84.91,84.873,46.28]
[1771006033500,47.34,84.94,84.864,0.13396604]
[1771006033501,0.86613774,84.949,84.893,0.13646166]
[1771006033695,10.30564704,84.91,84.874,58.04217121]
[1771006033880,0.86613774,84.909,84.875,46.28]
[1771006034078,0.86613774,84.889,84.85,10.30564704]
[1771006034307,0.86613774,84.889,84.799,47.16999171]
[1771006034308,10.30564704,84.86,84.82,10.30564704]
[1771006034487,10.30564704,84.87,84.83,10.30564704]
[1771006034690,10.30564704,84.86,84.82,10.30564704]
[1771006034887,11.76982921,84.963,84.818,46.3]
[1771006035087,10.30564704,84.95,84.9,10.30564704]
[1771006035286,10.30564704,84.94,84.9,57.12564704]
[1771006035594,10.30564704,84.94,84.901,11.77842428]
[1771006035789,11.77315485,84.939,84.901,11.77842428]
[1771006035995,4.61729252,84.975,84.91,10.30564704]
[1771006035996,10.30564704,84.95,84.91,10.30564704]
[1771006036190,0.93499495,84.949,84.901,11.77842428]
[1771006036389,0.93499495,84.929,84.901,11.77842428]
[1771006037506,0.93499495,84.928,84.891,11.77981175]
[1771006038005,11.24064199,84.94,84.9,10.30564704]
[1771006038205,11.77315485,84.939,84.9,10.30564704]
[1771006038398,12.7081498,84.939,84.9,10.30564704]
[1771006038591,10.30564704,84.95,84.91,10.30564704]
[1771006038987,0.93499495,84.964,84.93,10.30564704]
[1771006039690,0.93499495,84.982,84.95,10.30564704]
[1771006039898,0.93499495,84.979,84.94,10.30564704]
[1771006040094,11.76733622,84.981,84.931,11.77426381]
[1771006040095,0.93499495,84.959,84.931,11.77426381]
[1771006040301,0.93499495,84.979,84.94,10.30564704]
[1771006040806,0.93499495,84.979,84.915,47.10558466]
[1771006040807,0.93499495,84.969,84.918,29.44010873]
[1771006040990,41.1852367,84.982,84.92,10.30564704]
[1771006040991,0.93499495,84.949,84.92,10.30564704]
[1771006041587,0.93499495,84.993,84.94,10.30564704]
[1771006041787,11.76559406,84.994,84.921,47.10260124]
[1771006041788,0.93499495,84.989,84.95,10.30564704]
[1771006042206,0.93499495,84.989,84.96,10.30564704]
[1771006042811,0.93499495,84.989,84.95,10.30564704]
[1771006043113,0.93499495,84.979,84.941,46.8]
[1771006043493,0.93499495,84.977,84.941,46.8]
[1771006043805,0.93499495,84.949,84.91,10.30564704]
[1771006043994,0.93499495,84.949,84.887,41.23128394]
[1771006043995,0.93499495,84.939,84.9,10.30564704]
[1771006044591,0.93499495,84.939,84.91,10.30564704]
[1771006044888,4.61729252,84.974,84.887,41.23128394]
[1771006044889,0.93499495,84.951,84.92,10.30564704]
[1771006045091,0.93499495,84.949,84.91,10.30564704]
[1771006045297,0.93499495,84.949,84.9,10.30564704]
[1771006045601,0.93499495,84.939,84.9,10.30564704]
[1771006045799,0.93499495,84.929,84.89,10.30564704]
[1771006046192,0.93499495,84.929,84.9,10.30564704]
[1771006046901,11.77287764,84.941,84.91,10.30564704]
[1771006047095,11.24064199,84.94,84.9,10.30564704]
[1771006047301,0.93499495,84.929,84.89,10.30564704]
[1771006047701,0.93499495,84.929,84.9,10.30564704]
[1771006048014,0.93499495,84.927,84.892,11.77958487]
[1771006048311,0.93499495,84.927,84.89,10.30564704]
[1771006048617,0.93499495,84.927,84.871,46.72]
[1771006048618,0.93499495,84.927,84.88,10.30564704]
[1771006049911,0.93499495,84.927,84.856,5.36086188]
[1771006049912,0.93499495,84.907,84.861,11.78397614]
[1771006050119,0.93499495,84.907,84.836,5.36086188]
[1771006050120,0.93499495,84.889,84.85,10.30564704]
[1771006050299,0.93499495,84.889,84.86,10.30564704]
[1771006050818,0.93499495,84.889,84.844,0.02009002]
[1771006050819,0.93499495,84.889,84.85,10.30564704]
[1771006051399,0.93499495,84.889,84.86,10.30564704]
[1771006052112,0.93499495,84.889,84.861,41.24391651]
[1771006052819,0.93499495,84.889,84.861,11.78397614]
[1771006053113,0.93499495,84.889,84.836,5.36086188]
[1771006053114,0.93499495,84.887,84.833,0.02460255]
[1771006053316,0.93499495,84.887,84.788,100.2362888]
[1771006053317,0.93499495,84.879,84.834,11.78772661]
[1771006053820,0.93499495,84.859,84.828,11.78851282]
[1771006054195,0.93499495,84.857,84.824,11.78911628]
[1771006054404,0.93499495,84.857,84.813,29.4764581]
[1771006054405,0.93499495,84.857,84.814,11.79050628]
[1771006054818,0.93499495,84.857,84.82,10.30564704]
[1771006055119,0.93499495,84.857,84.814,41.26677199]
[1771006055120,0.93499495,84.857,84.83,10.30564704]
[1771006056499,0.93499495,84.855,84.826,11.78874566]
[1771006058417,0.93499495,84.855,84.821,11.78953325]
[1771006059115,0.93499495,84.854,84.821,11.78953325]
[1771006059902,0.93499495,84.853,84.821,11.78953325]
[1771006061426,0.93499495,84.853,84.83,10.30744255]
[1771006062324,0.93499495,84.851,84.821,11.78953325]
[1771006064338,0.93499495,84.849,84.811,11.79092334]
[1771006064508,0.93499495,84.847,84.811,11.79092334]
[1771006065922,0.93499495,84.839,84.811,11.79092334]
[1771006066325,0.93499495,84.839,84.801,11.79231376]
[1771006066533,0.93499495,84.837,84.801,11.79231376]
[1771006067425,0.93499495,84.848,84.82,10.30744255]
[1771006067727,48.35499495,84.848,84.82,10.30744255]
[1771006068711,48.35499495,84.848,84.821,11.78953325]
[1771006069831,48.33499495,84.847,84.821,11.78953325]
[1771006070531,0.93499495,84.846,84.821,11.78953325]
[1771006070713,47.4,84.845,84.821,11.78953325]
[1771006071208,48.33499495,84.845,84.821,11.78953325]
[1771006071412,0.93499495,84.845,84.821,11.78953325]
[1771006071611,47.4,84.844,84.821,11.78953325]
[1771006072730,0.93499495,84.854,84.821,11.83401288]